Cogmind - Beta 15 @@@ ROGUE MODE // 2025.07.13 @ 15:01:15 Player: arius Result: Destroyed by as-32219 with Assembled Maul Performance ------------- Evolutions (0) 0 Regions Visited (2) 400 Robots Destroyed (34) 170 Value Destroyed (795) 795 Prototype IDs (5) 100 Alien Tech Used (0) 0 Bonus (0) 0 TOTAL SCORE: 1465 Bonus ------- None Cogmind --------- Core Integrity 0/250 Matter 185/300 Energy 100/100 System Corruption 0% Temperature Cool (0) Movement Core (350) Ox6 Location -10/Mines Parts ------- > --- POWER (1) -------- (None) > --- PROPULSION (2) --- (None) > --- UTILITY (2) ------ Large Storage Unit Hacking Suite > --- WEAPON (2) ------- Datajack > --- INVENTORY (15) --- Ion Engine Huge Storage Unit Sensor Array Sensor Array Signal Interpreter Signal Interpreter Terrain Scanner Seismic Detector Improved Targeting Computer Datajack Peak State ------------ > --- POWER ------------ Light Nuclear Core > --- PROPULSION ------- Light Treads Light Treads > --- UTILITY ---------- Large Storage Unit Hacking Suite > --- WEAPON ----------- Rocket Launcher Datajack > --- INVENTORY -------- Ion Engine Huge Storage Unit Sensor Array Terrain Scanner Seismic Detector Improved Targeting Computer Rocket Launcher Datajack [Rating: 13] Favorites ----------- Power Ion Engine Engine Ion Engine Power Core Light Nuclear Core Propulsion Light Treads Treads Light Treads Utility Large Storage Unit Device Sensor Array Storage Large Storage Unit Hackware Hacking Suite Weapon Rocket Launcher Energy Gun EM Pulse Gun Ballistic Gun Assault Rifle Launcher Rocket Launcher Special Melee Weapon Datajack Build | -11 -10 -10 ------- Run | Yrd Mat Min Slots Evolved . | . . . Power . | . . . Propulsion . | . . . Utility . | . . . Weapon . | . . . Parts Attached 20 | 6 14 . Power 3 | 1 2 . Engine 2 | 1 1 . Core 1 | . 1 . Reactor . | . . . Propulsion 2 | 2 . . Treads 2 | 2 . . Leg . | . . . Wheel . | . . . Hover . | . . . Flight . | . . . Utility 6 | 1 5 . Device 1 | . 1 . Storage 3 | 1 2 . Processor . | . . . Hackware 2 | . 2 . Protection . | . . . Artifact . | . . . Weapon 9 | 2 7 . Energy Gun 3 | . 3 . Energy Cannon . | . . . Ballistic Gun 2 | 2 . . Ballistic Cannon . | . . . Launcher 2 | . 2 . Special Weapon . | . . . Impact Weapon . | . . . Slashing Weapon . | . . . Piercing Weapon . | . . . Special Melee Weapon 2 | . 2 . Unidentified Prototypes . | . . . Parts Lost 7 | . 1 6 Power 2 | . . 2 Propulsion 2 | . . 2 Utility 1 | . 1 . Weapon 2 | . . 2 Highest Loss Streak 5 | . 1 5 To Critical Strikes . | . . . Average Backups 7 | . 6 10 Power . | . . 1 Propulsion . | . . . Utility 4 | . 3 7 Weapon 1 | . 1 . Tool/Special . | . . . Unused Backups 9 | . 2 7 Power 1 | . . 1 Propulsion 1 | . 1 . Utility 6 | . . 6 Weapon 1 | . 1 . Tool/Special . | . . . Average Slot Usage (%) 96 | . 96 98 Engine 8 | . 6 12 Core 4 | . 7 . Treads 27 | . 27 27 Device 4 | . 6 . Storage 14 | . 14 14 Hackware 7 | . 4 14 Energy Gun 4 | . 7 . Ballistic Gun 2 | . 3 . Launcher 11 | . 10 13 Special Melee Weapon 9 | . 7 14 Peak Build Rating 13 | 6 13 13 Average Rating 9 | 4 9 10 On Entrance 6 | . 6 13 Naked Turns . | . . . Heaviest Build 34 | 13 34 30 Greatest Support 40 | 40 40 40 Greatest Overweight (x) 6 | 1 1 6 Average Overweight (x) . | . . . Largest Inventory Capacity 25 | 8 25 15 Average Capacity 12 | 6 11 15 Most Carried 11 | 1 11 11 Average Carried 7 | . 6 10 Final Capacity 15 | 8 15 15 Final Carried 11 | . 11 10 Class Distribution -------------------- 100% | Mutant Dominant Class ---------------- Mutant | -10/Materials Mutant | -10/Mines Resources | -11 -10 -10 ----------- Run | Yrd Mat Min Matter Collected 641 | 200 310 131 Remotely . | . . . Salvage Created 846 | . 783 63 Parts 60 | . 58 2 Haulers Intercepted 1 | . 1 . Recyclers Shooed . | . . . Parts Field Recycled . | . . . Retrieved Matter . | . . . Parts Self-Destructed . | . . . Prevented . | . . . Kills | -11 -10 -10 ------- Run | Yrd Mat Min Combat Hostiles Destroyed 40 | . 22 18 Melee 1 | . . 1 Guns 13 | . 13 . AOE 26 | . 9 17 Classes Destroyed 8 | . 6 2 Worker 3 | . 3 . Builder 2 | . 2 . Tunneler 1 | . . 1 Hauler 1 | . 1 . Operator 2 | . 2 . Swarmer 7 | . 6 1 Grunt 18 | . 16 2 Assembled 15 | . . 15 Best Kill Streak 15 | . 6 15 Combat Bots Only 15 | . 4 15 Max Kills in Single Turn 4 | . 3 4 Gunslinging 1 | . 1 . Exploded 4 | . 2 4 Melee 1 | . . 1 Uniques/NPCs Destroyed . | . . . Combat | -11 -10 -10 -------- Run | Yrd Mat Min Hostile Shots Fired 142 | . 81 61 Missed 41 | . 24 17 Hits 101 | . 57 44 Melee 2 | . . 2 Projectile 99 | . 57 42 Critical Strikes 1 | . 1 . Damage Taken 1245 | . 591 654 Core 276 | . 95 181 Absorbed by Shields . | . . . Regen/Repaired (Parts) 115 | . 115 . Core Remaining (%) 100 | 100 . . Volleys Fired 66 | . 49 17 Largest 2 | . 2 1 Hottest 80 | . 80 33 Shots Fired 108 | . 91 17 Gun 82 | . 82 . Cannon . | . . . Launcher 26 | . 9 17 Special . | . . . Kinetic 46 | . 46 . Thermal . | . . . Explosive 26 | . 9 17 Electromagnetic 36 | . 36 . Robot Hit Streak 9 | . 9 3 Robot Miss Streak 5 | . 4 5 Penetration Max . | . . . Secondary Targets 3 | . 3 . Max Gunslinging Chain 1 | . 1 . Shots Hit Robots 70 | . 59 11 Core Hits 77 | . 43 34 Critical Kills . | . . . Critical Parts Destroyed . | . . . Critical Strikes . | . . . Melee Attacks 15 | . 7 8 Impact . | . . . Slashing . | . . . Piercing . | . . . Sneak Attacks 10 | . 4 6 Combat Hostiles . | . . . Follow-up Attacks . | . . . Damage Inflicted 2895 | . 1340 1555 Guns 527 | . 527 . Cannons . | . . . Explosions 2352 | . 813 1539 Melee . | . . . Ramming 16 | . . 16 Kinetic 320 | . 320 . Thermal 40 | . 40 . Explosive 2312 | . 773 1539 Electromagnetic 207 | . 207 . Impact . | . . . Slashing . | . . . Piercing . | . . . Highest Corruption . | . . . Average Corruption . | . . . Corruption Purged . | . . . Corruption Blocked . | . . . Overload Shots . | . . . Overflow Damage 90 | . . 90 Projectiles . | . . . Explosions 90 | . . 90 Melee . | . . . Knockbacks . | . . . Impact . | . . . Kinetic . | . . . Secondary . | . . . Self-Inflicted Damage 100 | . 51 49 Shots 5 | . 2 3 Rammed 8 | . . 8 Targets Rammed 9 | . . 9 Kicked . | . . . Crushed 1 | . . 1 Highest Temperature 141 | . 141 38 Average Temperature 35 | . 37 21 Received Heat Transfer 331 | . 177 154 Siege Activations . | . . . Martial Activations . | . . . Shielding Activations . | . . . Robots Disrupted . | . . . Combat Hostiles . | . . . Robots Corrupted . | . . . Combat Hostiles . | . . . Parts Fried . | . . . Impact Corruptions . | . . . Robots Melted . | . . . Combat Hostiles . | . . . Parts Melted . | . . . Heat Transferred 100 | . 100 . Parts Sabotaged . | . . . Parts Stolen . | . . . Parts Stripped . | . . . Power Chain Reactions 1 | . 1 . Alert | -11 -10 -10 ------- Run | Yrd Mat Min Maximum Alert Level 1 | . 1 . Low Security (%) 90 | 100 84 100 Level 1 9 | . 15 . Level 2 . | . . . Level 3 . | . . . Level 4 . | . . . Level 5 . | . . . High Security . | . . . Max Security . | . . . Peak Influence 244 | . 244 121 Initial 76 | . . 76 Average 62 | . 86 26 Influence Increases 824 | . 682 142 Destroy 0b10 Robot/C 500 | . 440 60 Destroy 0b10 Robot/NC 45 | . 40 5 Destroy Leader 92 | . 82 10 Successful Hack 27 | . 27 . Disable Machine 30 | . 30 . Destroy Structure 130 | . 63 67 Influence Decreases 824 | . 486 338 Entered New Map 120 | . . 120 Time Decay 663 | . 476 187 Lost Part 41 | . 10 31 Squads Dispatched 4 | . 4 . Investigation 3 | . 3 . Extermination . | . . . Reinforcement 1 | . 1 . Assault . | . . . Garrison . | . . . Intercept . | . . . Searches Triggered . | . . . Construction Impeded . | . . . Haulers Reinforced . | . . . Active Scanning Responses . | . . . Cargo Convoy Interrupts . | . . . Stealth | -11 -10 -10 --------- Run | Yrd Mat Min Distress Signals 1 | . 1 . Communications Jammed . | . . . Distress Signals . | . . . Times Spotted 51 | . 31 20 Peak Tracking Total 19 | . 4 19 Tactical Retreats . | . . . Traps | -11 -10 -10 ------- Run | Yrd Mat Min Traps Triggered . | . . . Indirectly . | . . . Trap Hack Attempts . | . . . Triggered . | . . . Disarmed . | . . . Reprogrammed . | . . . Reused . | . . . Traps Extracted . | . . . Installed . | . . . Triggered . | . . . Machines | -11 -10 -10 ---------- Run | Yrd Mat Min Machines Disabled 2 | . 2 . Max in Single Turn 1 | . 1 . Machines Repaired . | . . . Machines Dismantled . | . . . Machines Sabotaged . | . . . Overloaded Fab Kills . | . . . Hacking | -11 -10 -10 --------- Run | Yrd Mat Min Machines Accessed 8 | . 8 . Terminals 7 | . 7 . Fabricators . | . . . Repair Stations 1 | . 1 . Recycling Units . | . . . Scanalyzers . | . . . Garrison Access . | . . . Total Hacks 22 | . 22 . Successful 14 | . 14 . Failed 8 | . 8 . Catastrophic 1 | . 1 . Database Lockouts . | . . . Manual . | . . . Terminals 19 | . 19 . Fabricators . | . . . Repair Stations 3 | . 3 . Recycling Units . | . . . Scanalyzers . | . . . Garrison Access . | . . . Terminal Hacks 12 | . 12 . Record 1 | . 1 . Robot Analysis 1 | . 1 . Prototype ID Bank 3 | . 3 . Terminal Index 1 | . 1 . Alert Level 1 | . 1 . Locate Traps 1 | . 1 . Dispatch Records 1 | . 1 . Hauler Manifests 2 | . 2 . Zone Layout 1 | . 1 . Fabricator Hacks . | . . . Repair Station Hacks 2 | . 2 . Scan Component 1 | . 1 . Repair 1 | . 1 . Recycling Unit Hacks . | . . . Scanalyzer . | . . . Garrison Access Hacks . | . . . Unauthorized Hacks . | . . . Terminals . | . . . Fabricators . | . . . Repair Stations . | . . . Recycling Units . | . . . Scanalyzers . | . . . Garrison Access . | . . . Data Cores Recovered . | . . . Used . | . . . Hacking Detections 5 | . 5 . Full Trace Events 5 | . 5 . Feedback Events . | . . . Feedback Blocked . | . . . Robot Schematics Acquired . | . . . Robots Built . | . . . Authchips . | . . . Time . | . . . Total Robot Build Rating . | . . . Part Schematics Acquired . | . . . Parts Built . | . . . Authchips . | . . . Time . | . . . Total Part Build Rating . | . . . Parts Repaired 1 | . 1 . Time 26 | . 26 . Parts Recycled . | . . . Recycled Matter . | . . . Retrieved Matter . | . . . Retrieved Components . | . . . Parts Scanalyzed . | . . . Part Schematics Acquired . | . . . Parts Damaged . | . . . Bothacking | -11 -10 -10 ------------ Run | Yrd Mat Min Used RIF Installer . | . . . Robots Hacked 9 | . 4 5 Non-combat 7 | . 4 3 Combat 2 | . . 2 Robot Hacks Applied 11 | . 5 6 parse_system 9 | . 4 5 no_distress 2 | . 1 1 Relay Couplers Released . | . . . Fabnet Peak Effective % . | . . . Robots Rewired . | . . . Allies Hacked . | . . . Hacks Repelled . | . . . Allies | -11 -10 -10 -------- Run | Yrd Mat Min Total Allies . | . . . Largest Group . | . . . Highest-Rated Group . | . . . Highest-Rated Ally . | . . . Total Orders . | . . . Ally Attacks . | . . . Total Damage . | . . . Kills . | . . . Allies Corrupted . | . . . Allies Melted . | . . . Intel | -11 -10 -10 ------- Run | Yrd Mat Min Active Infowar (turns) 669 | . 669 . Sensors 669 | . 669 . Robot Analysis Total 1 | . 1 . Derelict Logs Recovered 1 | . . 1 Drone Launches . | . . . Drone Recoveries . | . . . Exploration | -11 -10 -10 ------------- Run | Yrd Mat Min Turns Passed 2390 | 113 1474 803 Spaces Moved 1308 | 67 787 454 Core 9 | 7 . 2 Treads 1299 | 60 787 452 Legs . | . . . Wheels . | . . . Hover . | . . . Flight . | . . . Fastest Speed 50 | 50 160 160 Average Speed 160 | 152 161 161 Slowest Speed 350 | 160 240 350 Overloaded Moves . | . . . Propulsion Burnouts . | . . . Robots Hopped . | . . . Potential Cave-ins . | . . . Cave-ins Triggered . | . . . Exploration Rate (%) 58 | 4 95 76 Regions Visited 2 Branch Regions 1 Pre-discovered Areas . | . . . Known Exits Taken . | . . . Unknown Exits Taken 2 | 1 1 . Scrap Searched 1 | . . 1 Spaces Dug 7 | . . 7 Terrain Destroyed 153 | . 64 89 Melee . | . . . Projectile . | . . . AOE 153 | . 64 89 Terrain Rammed . | . . . Walls Destroyed . | . . . Machines Disabled . | . . . Actions | -11 -10 -10 --------- Run | Yrd Mat Min Total 1481 | 78 902 501 Wait 20 | . 10 10 Move 1306 | 66 786 454 Hop . | . . . Pick Up 30 | 6 23 1 Fast Attach . | . . . Attach 13 | 6 5 2 Detach 2 | . 2 . Swap 11 | . 11 . Drop 9 | . 9 . Fire 66 | . 49 17 Melee 15 | . 7 8 Ram . | . . . Kick . | . . . Crush 9 | . . 9 Escape Stasis . | . . . Rewire . | . . . Trap . | . . . Miscellaneous . | . . . Route ------- -11/Scrapyard -10/Materials (discovered 4 exits: [*Mat x3] / [*Min]) -10/Mines (discovered 1 exit: [*Mat]) History --------- Turn | Location | Event 20 | -11/Scrapyard | Discovered new exit (range 15) 114 | -11/Scrapyard | Entered Materials 312 | -10/Materials | Build established: Mutant 393 | -10/Materials | Discovered new exit (range 15) 552 | -10/Materials | Discovered new exit (range 7) 906 | -10/Materials | Discovered new exit (range 4) 1246 | -10/Materials | Repaired Lgt. Treads 1366 | -10/Materials | Discovered new exit (range 16) 1588 | -10/Materials | Entered Mines 1636 | -10/Mines | Core integrity fell below 50% 1676 | -10/Mines | Discovered new exit (range 15) 1987 | -10/Mines | Found a hidden stash of uninstalled traps 2361 | -10/Mines | Assembled infested the area 2389 | -10/Mines | Core integrity fell below 20% 2391 | -10/Mines | Destroyed by as-32219 with Assembled Maul Last Messages --------------- as-87027 destroyed. as-02902 destroyed. Destroyed Asb. Hover Unit. as-81715 destroyed. as-26660 destroyed. Lgt. Treads destroyed. as-01775 destroyed. Rocket Launcher destroyed. Ion Engine destroyed. Lgt. Treads destroyed. as-39213 destroyed. as-11157 destroyed. as-30997 destroyed. as-30701 destroyed. as-75201 destroyed. [Achievement: Exterminator] Rocket Launcher destroyed. Jacked as-32219... >>parse_system Reading system data... Map ----- +----------------------------------------------------+ | | | | | | | | | | | | | | | | | | | | | | | | | ?????????????????????????????????????????????????? | | ?????????????????????????????????????????????????? | | ??????###????????????????????????????????????????? | | ?????# ###??????????????????????????????????????? | | ???## #??????????????????????????????????????? | | #### #??????????????????????????????????????? | | # #??????????????????????????????????????? | | # ### ####???????????????????????????????????????? | | # #??##??????????????????????????????????????????? | | # #????????????????????###""###???#??????????????? | | # #?????????#####??????# X ### # ### ?????????? | | # #?????????? #??????# * ????????? | | # #??????????# #?????## !%= ????????? | | # #??????????# ####### @ a= ????????? | | # ####??????## # ## a ????????? | | #?????## ????????? | | #### ####### ????????? | | ???# ### a ????????? | | ???### ###### ## ##??? ?????????? | | ?????# #????## #########?????### ?????????? | | ?????# #?????## #??????????????????=??????????? | | ?????# #??????# #????????????????????????????? | | ?????# #??????# #????????????????????????????? | | ?????# #?????# #????????????????????????????? | | ?????# #????# ##????????????????????????????? | | ?????# ##### #?????????????????????????????? | | ####?# #?????????????????????????????? | | ### ##### ##?????????????????????????????? | | ## #???## #??????????????????????????????? | | ## #????# #??????????????????????????????? | | ### ####?## ##??????????????????????????????? | | #### ##??####???????????????????????????????? | | #### ## ###????????????????????????????????????? | | ##^# # #????????????????????????????????????? | | # ## # %#######????????????????????????????????? | | # ## # !|#????????????????????????????????? | | # #### #????????????????????????????????? | | ##### ## #### #????????????????????????????????? | +----------------------------------------------------+ Best States ------------- Heat Dissipation 25 Energy Generation 14 Energy Capacity 250 Matter Stores 288 Matter Capacity 300 Sight Range 16 Robot Scan Range 14 Terrain Scan Density 10 Evasion (%) 40 Recoil Reduction 2 Offensive Hacking 10 Item Schematics ----------------- None Robot Schematics ------------------ None Fabricated ------------ Nothing Repaired ---------- Lgt. Treads | 17% | -10/Materials Alien Tech Used ----------------- None Achievements -------------- Exterminator Loot Pinata Part-time Mechanic Challenges ------------ None Game ------ Seed EncryptedRelayConstruct Manual? 0 Play Time 00:30:21 Cumulative 4.1 hours Start 2025.07.13 @ 14:31:15 End 2025.07.13 @ 15:01:15 Sessions 1 Manual Loads 0 Difficulty Rogue Special Mode None Game No. 5 Rogue 5 Adventurer 0 Explorer 0 Win Type - Total 0 Types 0/0/0/0/0/0/0/0/0/0 Lore% 1 Gallery% 5 Achievement% 7 Wizard Run 0 Options --------- Layout 1 ASCII 0 Keyboard 1 Movement Vi Keybinds 0 Fullscreen 1 Font 32/SmallcapsGlow Map View 50x35 Zoom Use 0% Tactical HUD 0 Map Filters NONE Filters NONE Steam 1 RUN: f002b7ec-5fc9-432d-bb86-c3165e8ea492